Workbook

Sheet СБР
A1: АНАЛИЗ ИСПОЛНЕНИЯ СВОДНОЙ БЮДЖЕТНОЙ РОСПИСИ БЮДЖЕТА ГОРОДСКОГО ОКРУГА "ГОРОД ФОКИНО" (РАСХОДЫ) на 01.10.2013г.
N2: руб. | P2: руб.
A3: наименование | B3: Вед. | C3: Разд. | D3: Ц.ст. | E3: Расх. | F3: Эк.класс. | G3: План на 2013 год | H3: Факт за 2012 год | I3: % исполнения | J3: План на 2013 год | K3: Факт за 2012 год | L3: % исполнения | M3: План на 2012 год | N3: Факт за 2012 год | O3: % исполнения | P3: Факт на 01.10.2013г. | Q3: % исполнения
A4: Совет народных депутатов города Фокино | B4: 001 | C4: 0000 | D4: 0000000 | E4: 000 | F4: 000 | J4: =J5 -> 846964 | K4: 570000 | L4: 0 | M4: 570000 | N4: 0 | O4: 570000 | P4: =P5 -> 433405.16 | Q4: =P4/J4*100 -> 51.17161532
A5: ОБЩЕГОСУДАРСТВЕННЫЕ ВОПРОСЫ | B5: 001 | C5: 0100 | D5: 0000000 | E5: 000 | F5: 000 | J5: =J6+J30 -> 846964 | K5: 570000 | L5: 0 | M5: 570000 | N5: 0 | O5: 570000 | P5: =P6+P30 -> 433405.16 | Q5: =P5/J5*100 -> 51.17161532
A6: Функционирование законодательных (представительных) органов государственной власти и представительных органов муниципальных образований | B6: 001 | C6: 0103 | D6: 0000000 | E6: 000 | F6: 000 | J6: =J7+J26 -> 839964 | K6: =K7+K26 -> 563000 | L6: 0 | M6: 563000 | N6: 0 | O6: 563000 | P6: 433405.16 | Q6: 51.59806373
A7: Центральный аппарат | B7: 001 | C7: 0103 | D7: 0020400 | E7: 000 | F7: 000 | J7: =J8+J13+J20+J23 -> 563000 | K7: 563000 | L7: 0 | M7: 563000 | N7: 0 | O7: 563000 | P7: =P8+P13+P20+P23 -> 433405.16 | Q7: 76.98137833
A8: Расходы на выплаты персоналу государственных (муниципальных) органов | B8: 001 | C8: 0103 | D8: 0020400 | E8: 120 | F8: 000 | J8: =J9+J11 -> 352000 | K8: 352000 | L8: 0 | M8: 352000 | N8: 0 | O8: 352000 | P8: =P9+P11 -> 318593.27 | Q8: 90.5094517
A9: Заработная плата | B9: 001 | C9: 0103 | D9: 0020400 | E9: 120 | F9: 211 | J9: 270353 | K9: 270353 | L9: 0 | M9: 270353 | N9: 0 | O9: 270353 | P9: 247824.67 | Q9: 91.66706861
B10: 001 | C10: 0103 | D10: 0020400 | E10: 120 | F10: 211 | J10: 270353 | K10: 270353 | L10: 0 | M10: 270353 | N10: 0 | O10: 270353 | Q10: 0
A11: Начисления на выплаты по оплате труда | B11: 001 | C11: 0103 | D11: 0020400 | E11: 120 | F11: 213 | J11: 81647 | K11: 81647 | L11: 0 | M11: 81647 | N11: 0 | O11: 81647 | P11: 70768.6 | Q11: 86.67630164
B12: 001 | C12: 0103 | D12: 0020400 | E12: 120 | F12: 213 | J12: 81647 | K12: 81647 | L12: 0 | M12: 81647 | N12: 0 | O12: 81647 | P12: 81647 | Q12: 100
A13: Иные закупки товаров, работ и услуг для государственных(муниципальных) нужд | B13: 001 | C13: 0103 | D13: 0020400 | E13: 240 | F13: 000 | J13: =J14+J16+J18 -> 209000 | K13: 209000 | L13: 0 | M13: 209000 | N13: 0 | O13: 209000 | P13: =P14+P16+P18 -> 114706 | Q13: 54.88325359
A14: Услуги связи | B14: 001 | C14: 0103 | D14: 0020400 | E14: 240 | F14: 221 | J14: 12000 | K14: 12000 | L14: 0 | M14: 12000 | N14: 0 | O14: 12000 | P14: 9000 | Q14: 75
B15: 001 | C15: 0103 | D15: 0020400 | E15: 240 | F15: 221 | J15: 12000 | K15: 12000 | L15: 0 | M15: 12000 | N15: 0 | O15: 12000 | Q15: 0
A16: Прочие работы, услуги | B16: 001 | C16: 0103 | D16: 0020400 | E16: 240 | F16: 226 | J16: 177000 | K16: 177000 | L16: 0 | M16: 177000 | N16: 0 | O16: 177000 | P16: 91206 | Q16: 51.52881356
B17: 001 | C17: 0103 | D17: 0020400 | E17: 240 | F17: 226 | J17: 177000 | K17: 177000 | L17: 0 | M17: 177000 | N17: 0 | O17: 177000 | Q17: 0
A18: Увеличение стоимости материальных запасов | B18: 001 | C18: 0103 | D18: 0020400 | E18: 240 | F18: 340 | J18: 20000 | K18: 20000 | L18: 0 | M18: 20000 | N18: 0 | O18: 20000 | P18: 14500 | Q18: 72.5
B19: 001 | C19: 0103 | D19: 0020400 | E19: 240 | F19: 340 | J19: 20000 | K19: 20000 | L19: 0 | M19: 20000 | N19: 0 | O19: 20000 | P19: 20000 | Q19: 100
A20: Уплата налога на имущество организаций и земельного налога | B20: 001 | C20: 0103 | D20: 0020400 | E20: 851 | F20: 000 | J20: =J21 -> 1000 | K20: 1000 | L20: 0 | M20: 1000 | N20: 0 | O20: 1000 | P20: =P21 -> 0 | Q20: 0
A21: Прочие расходы | B21: 001 | C21: 0103 | D21: 0020400 | E21: 851 | F21: 290 | J21: 1000 | K21: 1000 | L21: 0 | M21: 1000 | N21: 0 | O21: 1000 | P21: 0 | Q21: 0
B22: 001 | C22: 0103 | D22: 0020400 | E22: 851 | F22: 290 | J22: 1000 | K22: 1000 | L22: 0 | M22: 1000 | N22: 0 | O22: 1000 | P22: 1000 | Q22: 100
A23: Уплата прочих налогов, сборов и иных платежей | B23: 001 | C23: 0103 | D23: 0020400 | E23: 852 | F23: 000 | J23: =J24 -> 1000 | K23: 1000 | L23: 0 | M23: 1000 | N23: 0 | O23: 1000 | P23: =P24 -> 105.89 | Q23: 10.589
A24: Прочие расходы | B24: 001 | C24: 0103 | D24: 0020400 | E24: 852 | F24: 290 | J24: 1000 | K24: 1000 | L24: 0 | M24: 1000 | N24: 0 | O24: 1000 | P24: 105.89 | Q24: 10.589
B25: 001 | C25: 0103 | D25: 0020400 | E25: 852 | F25: 290 | J25: 1000 | K25: 1000 | L25: 0 | M25: 1000 | N25: 0 | O25: 1000 | P25: 1000 | Q25: 100
A26: Председатель представительного органа муниципального образования | B26: 001 | C26: 0103 | D26: 0021100 | E26: 000 | F26: 000 | J26: =J27 -> 276964 | K26: =K27 -> 0 | L26: 0 | M26: 0 | N26: 0 | O26: 0 | P26: 0 | Q26: 0
A27: Расходы на выплаты персоналу государственных (муниципальных) органов | B27: 001 | C27: 0103 | D27: 0021100 | E27: 120 | F27: 000 | J27: =J28+J29 -> 276964 | K27: =K28+K29 -> 0 | L27: 0 | M27: 0 | N27: 0 | O27: 0 | P27: 0 | Q27: 0
A28: Заработная плата | B28: 001 | C28: 0103 | D28: 0021100 | E28: 120 | F28: 211 | J28: 212722 | P28: 0 | Q28: 0
A29: Начисления на выплаты по оплате труда | B29: 001 | C29: 0103 | D29: 0021100 | E29: 120 | F29: 213 | J29: 64242 | P29: 0 | Q29: 0
A30: Другие общегосударственные вопросы | B30: 001 | C30: 0113 | D30: 0000000 | E30: 000 | F30: 000 | J30: =J31 -> 7000 | K30: 7000 | L30: 0 | M30: 7000 | N30: 0 | O30: 7000 | P30: =P31 -> 0 | Q30: 0
A31: Долгосрочнаяя целевая программа "Развитие информационного обеспечения " | B31: 001 | C31: 0113 | D31: 7952200 | E31: 000 | F31: 000 | J31: =J32 -> 7000 | K31: 7000 | L31: 0 | M31: 7000 | N31: 0 | O31: 7000 | P31: =P32 -> 0 | Q31: 0
A32: Иные закупки товаров, работ и услуг для государственных(муниципальных) нужд | B32: 001 | C32: 0113 | D32: 7952200 | E32: 240 | F32: 000 | J32: =J33+J35+J37 -> 7000 | K32: 7000 | L32: 0 | M32: 7000 | N32: 0 | O32: 7000 | P32: =P33+P35+P37 -> 0 | Q32: 0
A33: Работы, услуги по содержанию имущества | B33: 001 | C33: 0113 | D33: 7952200 | E33: 240 | F33: 225 | J33: 3000 | K33: 3000 | L33: 0 | M33: 3000 | N33: 0 | O33: 3000 | P33: 0 | Q33: 0
B34: 001 | C34: 0113 | D34: 7952200 | E34: 240 | F34: 225 | J34: 3000 | K34: 3000 | L34: 0 | M34: 3000 | N34: 0 | O34: 3000 | Q34: 0
A35: Прочие работы, услуги | B35: 001 | C35: 0113 | D35: 7952200 | E35: 240 | F35: 226 | J35: 2000 | K35: 2000 | L35: 0 | M35: 2000 | N35: 0 | O35: 2000 | P35: 0 | Q35: 0
B36: 001 | C36: 0113 | D36: 7952200 | E36: 240 | F36: 226 | J36: 2000 | K36: 2000 | L36: 0 | M36: 2000 | N36: 0 | O36: 2000 | Q36: 0
A37: Увеличение стоимости основных средств | B37: 001 | C37: 0113 | D37: 7952200 | E37: 240 | F37: 310 | J37: 2000 | K37: 2000 | L37: 0 | M37: 2000 | N37: 0 | O37: 2000 | P37: 0 | Q37: 0
B38: 001 | C38: 0113 | D38: 7952200 | E38: 240 | F38: 310 | J38: 2000 | K38: 2000 | L38: 0 | M38: 2000 | N38: 0 | O38: 2000 | P38: 2000 | Q38: 100
A39: Администрация города Фокино | B39: 002 | C39: 0000 | D39: 0000000 | E39: 000 | F39: 000 | J39: =J40+J118+J124+J141+J193+J234+J283+J293+J356+J362 -> 144594381 | K39: 136468607.6 | L39: 0 | M39: 136468607.6 | N39: 0 | O39: 136468607.6 | P39: =P40+P118+P124+P141+P193+P234+P283+P293+P356+P362 -> 104717597.9 | Q39: 72.42162325
A40: ОБЩЕГОСУДАРСТВЕННЫЕ ВОПРОСЫ | B40: 002 | C40: 0100 | D40: 0000000 | E40: 000 | F40: 000 | J40: =J41+J82+J87+J78 -> 10008309 | K40: =K41+K82+K87+K78 -> 9157057 | L40: 0 | M40: 9157057 | N40: 0 | O40: 9157057 | P40: 7846676.36 | Q40: 78.40161969
A41: Функционирование Правительства Российской Федерации, высших исполнительных органов государственной власти субъектов Российской Федерации, местных администраций | B41: 002 | C41: 0104 | D41: 0000000 | E41: 000 | F41: 000 | J41: =J42+J72 -> 8991452 | K41: 7763200 | L41: 0 | M41: 7763200 | N41: 0 | O41: 7763200 | P41: =P42+P72 -> 7090590.42 | Q41: 78.85923675
A42: Центральный аппарат | B42: 002 | C42: 0104 | D42: 0020400 | E42: 000 | F42: 000 | J42: =J43+J50+J66+J69 -> 8046200 | K42: 7037200 | L42: 0 | M42: 7037200 | N42: 0 | O42: 7037200 | P42: =P43+P50+P66+P69 -> 6307508.62 | Q42: 78.39114887
A43: Расходы на выплаты персоналу государственных (муниципальных) органов | B43: 002 | C43: 0104 | D43: 0020400 | E43: 120 | F43: 000 | J43: =J44+J46+J48 -> 6734000 | K43: 5900000 | L43: 0 | M43: 5900000 | N43: 0 | O43: 5900000 | P43: =P44+P46+P48 -> 5065278.37 | Q43: 75.21945901
A44: Заработная плата | B44: 002 | C44: 0104 | D44: 0020400 | E44: 120 | F44: 211 | J44: =4528802+394000+338000 -> 5260802 | K44: 4528802 | L44: 0 | M44: 4528802 | N44: 0 | O44: 4528802 | P44: 3860910.38 | Q44: 73.39014812
B45: 002 | C45: 0104 | D45: 0020400 | E45: 120 | F45: 211 | J45: 4528802 | K45: 4528802 | L45: 0 | M45: 4528802 | N45: 0 | O45: 4528802 | Q45: 0
A46: Прочие выплаты | B46: 002 | C46: 0104 | D46: 0020400 | E46: 120 | F46: 212 | J46: 3500 | K46: 3500 | L46: 0 | M46: 3500 | N46: 0 | O46: 3500 | P46: 1246.77 | Q46: 35.622
B47: 002 | C47: 0104 | D47: 0020400 | E47: 120 | F47: 212 | J47: 3500 | K47: 3500 | L47: 0 | M47: 3500 | N47: 0 | O47: 3500 | Q47: 0
A48: Начисления на выплаты по оплате труда | B48: 002 | C48: 0104 | D48: 0020400 | E48: 120 | F48: 213 | J48: =1367698+102000 -> 1469698 | K48: 1367698 | L48: 0 | M48: 1367698 | N48: 0 | O48: 1367698 | P48: 1203121.22 | Q48: 81.86179882
B49: 002 | C49: 0104 | D49: 0020400 | E49: 120 | F49: 213 | J49: 1367698 | K49: 1367698 | L49: 0 | M49: 1367698 | N49: 0 | O49: 1367698 | P49: 1367698 | Q49: 100
A50: Иные закупки товаров, работ и услуг для государственных(муниципальных) нужд | B50: 002 | C50: 0104 | D50: 0020400 | E50: 240 | F50: 000 | J50: =J51+J54+J56+J58+J60+J62+J64+J53 -> 1207200 | K50: =K51+K54+K56+K58+K60+K62+K64+K53 -> 1032200 | L50: 0 | M50: 1032200 | N50: 0 | O50: 1032200 | P50: 1149323.18 | Q50: 95.20569748
A51: Услуги связи | B51: 002 | C51: 0104 | D51: 0020400 | E51: 240 | F51: 221 | J51: 180000 | K51: 180000 | L51: 0 | M51: 180000 | N51: 0 | O51: 180000 | P51: 165145.66 | Q51: 91.74758889
B52: 002 | C52: 0104 | D52: 0020400 | E52: 240 | F52: 221 | J52: 180000 | K52: 180000 | L52: 0 | M52: 180000 | N52: 0 | O52: 180000 | Q52: 0
A53: Транспортные услуги | B53: 002 | C53: 0104 | D53: 0020400 | E53: 240 | F53: 222 | J53: 2000 | P53: 0 | Q53: 0
A54: Коммунальные услуги | B54: 002 | C54: 0104 | D54: 0020400 | E54: 240 | F54: 223 | J54: =555000+121000+23000+37000 -> 736000 | K54: 500000 | L54: 0 | M54: 500000 | N54: 0 | O54: 500000 | P54: 712037.32 | Q54: 96.74420109
B55: 002 | C55: 0104 | D55: 0020400 | E55: 240 | F55: 223 | J55: 500000 | K55: 500000 | L55: 0 | M55: 500000 | N55: 0 | O55: 500000 | Q55: 0
A56: Работы, услуги по содержанию имущества | B56: 002 | C56: 0104 | D56: 0020400 | E56: 240 | F56: 225 | J56: =32000-922 -> 31078 | K56: 47000 | L56: 0 | M56: 47000 | N56: 0 | O56: 47000 | P56: 30846.2 | Q56: 99.25413476
B57: 002 | C57: 0104 | D57: 0020400 | E57: 240 | F57: 225 | J57: 47000 | K57: 47000 | L57: 0 | M57: 47000 | N57: 0 | O57: 47000 | Q57: 0
A58: Прочие работы, услуги | B58: 002 | C58: 0104 | D58: 0020400 | E58: 240 | F58: 226 | J58: =60000+20562 -> 80562 | K58: 70000 | L58: 0 | M58: 70000 | N58: 0 | O58: 70000 | P58: 73880.52 | Q58: 91.70641245
B59: 002 | C59: 0104 | D59: 0020400 | E59: 240 | F59: 226 | J59: 70000 | K59: 70000 | L59: 0 | M59: 70000 | N59: 0 | O59: 70000 | Q59: 0
A60: Прочие расходы | B60: 002 | C60: 0104 | D60: 0020400 | E60: 240 | F60: 290 | J60: =10000-2600 -> 7400 | K60: 10000 | L60: 0 | M60: 10000 | N60: 0 | O60: 10000 | P60: 1699 | Q60: 22.95945946
B61: 002 | C61: 0104 | D61: 0020400 | E61: 240 | F61: 290 | J61: 10000 | K61: 10000 | L61: 0 | M61: 10000 | N61: 0 | O61: 10000 | Q61: 0
A62: Увеличение стоимости основных средств | B62: 002 | C62: 0104 | D62: 0020400 | E62: 240 | F62: 310 | J62: =10000+960 -> 10960 | K62: 10000 | L62: 0 | M62: 10000 | N62: 0 | O62: 10000 | P62: 10803.16 | Q62: 98.5689781
B63: 002 | C63: 0104 | D63: 0020400 | E63: 240 | F63: 310 | J63: 10000 | K63: 10000 | L63: 0 | M63: 10000 | N63: 0 | O63: 10000 | Q63: 0
A64: Увеличение стоимости материальных запасов | B64: 002 | C64: 0104 | D64: 0020400 | E64: 240 | F64: 340 | J64: =195200-33000-3000 -> 159200 | K64: 215200 | L64: 0 | M64: 215200 | N64: 0 | O64: 215200 | P64: 154911.32 | Q64: 97.30610553
B65: 002 | C65: 0104 | D65: 0020400 | E65: 240 | F65: 340 | J65: 215200 | K65: 215200 | L65: 0 | M65: 215200 | N65: 0 | O65: 215200 | P65: 215200 | Q65: 100
A66: Уплата налога на имущество организаций и земельного налога | B66: 002 | C66: 0104 | D66: 0020400 | E66: 851 | F66: 000 | J66: =J67 -> 70000 | K66: 70000 | L66: 0 | M66: 70000 | N66: 0 | O66: 70000 | P66: =P67 -> 64123 | Q66: 91.60428571
A67: Прочие расходы | B67: 002 | C67: 0104 | D67: 0020400 | E67: 851 | F67: 290 | J67: 70000 | K67: 70000 | L67: 0 | M67: 70000 | N67: 0 | O67: 70000 | P67: 64123 | Q67: 91.60428571
B68: 002 | C68: 0104 | D68: 0020400 | E68: 851 | F68: 290 | J68: 70000 | K68: 70000 | L68: 0 | M68: 70000 | N68: 0 | O68: 70000 | P68: 70000 | Q68: 100
A69: Уплата прочих налогов, сборов и иных платежей | B69: 002 | C69: 0104 | D69: 0020400 | E69: 852 | F69: 000 | J69: =J70 -> 35000 | K69: 35000 | L69: 0 | M69: 35000 | N69: 0 | O69: 35000 | P69: =P70 -> 28784.07 | Q69: =P69/J69*100 -> 82.2402
A70: Прочие расходы | B70: 002 | C70: 0104 | D70: 0020400 | E70: 852 | F70: 290 | J70: 35000 | K70: 35000 | L70: 0 | M70: 35000 | N70: 0 | O70: 35000 | P70: 28784.07 | Q70: 82.2402
B71: 002 | C71: 0104 | D71: 0020400 | E71: 852 | F71: 290 | J71: 35000 | K71: 35000 | L71: 0 | M71: 35000 | N71: 0 | O71: 35000 | P71: 35000 | Q71: 100
A72: Глава местной администрации (исполнительно-распорядительного органа муниципального образования) | B72: 002 | C72: 0104 | D72: 0020800 | E72: 000 | F72: 000 | J72: =J73 -> 945252 | K72: 726000 | L72: 0 | M72: 726000 | N72: 0 | O72: 726000 | P72: =P73 -> 783081.8 | Q72: 82.84370729
A73: Расходы на выплаты персоналу государственных (муниципальных) органов | B73: 002 | C73: 0104 | D73: 0020800 | E73: 120 | F73: 000 | J73: =J74+J76 -> 945252 | K73: 726000 | L73: 0 | M73: 726000 | N73: 0 | O73: 726000 | P73: =P74+P76 -> 783081.8 | Q73: 82.84370729
A74: Заработная плата | B74: 002 | C74: 0104 | D74: 0020800 | E74: 120 | F74: 211 | J74: =506748+219252+600 -> 726600 | K74: 506748 | L74: 0 | M74: 506748 | N74: 0 | O74: 506748 | P74: 629859.13 | Q74: 86.68581475
B75: 002 | C75: 0104 | D75: 0020800 | E75: 120 | F75: 211 | J75: 506748 | K75: 506748 | L75: 0 | M75: 506748 | N75: 0 | O75: 506748 | Q75: 0
A76: Начисления на выплаты по оплате труда | B76: 002 | C76: 0104 | D76: 0020800 | E76: 120 | F76: 213 | J76: =219252-600 -> 218652 | K76: 219252 | L76: 0 | M76: 219252 | N76: 0 | O76: 219252 | P76: 153222.67 | Q76: 70.07604321
B77: 002 | C77: 0104 | D77: 0020800 | E77: 120 | F77: 213 | J77: 219252 | K77: 219252 | L77: 0 | M77: 219252 | N77: 0 | O77: 219252 | P77: 219252 | Q77: 100
A78: Обеспечение проведения выборов и референдумов | B78: 002 | C78: 0107 | D78: 0000000 | E78: 000 | F78: 000 | J78: =J79 -> 416000 | K78: =K79 -> 0 | L78: 0 | M78: 0 | N78: 0 | O78: 0 | P78: =P79 -> 416000 | Q78: 100
A79: Проведение выборов в законодательные (представительные) органы власти муниципального образования | B79: 002 | C79: 0107 | D79: 0200002 | E79: 000 | F79: 000 | J79: =J80 -> 416000 | K79: 0 | L79: 0 | M79: 0 | N79: 0 | O79: 0 | P79: 416000 | Q79: 100
A80: Специальные расходы | B80: 002 | C80: 0107 | D80: 0200002 | E80: 880 | F80: 000 | J80: =J81 -> 416000 | K80: 0 | L80: 0 | M80: 0 | N80: 0 | O80: 0 | P80: 416000 | Q80: 100
A81: Прочие расходы | B81: 002 | C81: 0107 | D81: 0200002 | E81: 880 | F81: 290 | J81: 416000 | P81: 416000 | Q81: 100
A82: Резервные фонды | B82: 002 | C82: 0111 | D82: 0000000 | E82: 000 | F82: 000 | J82: =J83 -> 84000 | K82: 500000 | L82: 0 | M82: 500000 | N82: 0 | O82: 500000 | P82: =P83 -> 0 | Q82: 0
A83: Резервные фонды местных администраций | B83: 002 | C83: 0111 | D83: 0700500 | E83: 000 | F83: 000 | J83: =J84 -> 84000 | K83: 500000 | L83: 0 | M83: 500000 | N83: 0 | O83: 500000 | P83: =P84 -> 0 | Q83: 0
A84: Резервные средства | B84: 002 | C84: 0111 | D84: 0700500 | E84: 870 | F84: 000 | J84: =J85 -> 84000 | K84: 500000 | L84: 0 | M84: 500000 | N84: 0 | O84: 500000 | P84: =P85 -> 0 | Q84: 0
A85: Прочие расходы | B85: 002 | C85: 0111 | D85: 0700500 | E85: 870 | F85: 290 | J85: 84000 | K85: 500000 | L85: 0 | M85: 500000 | N85: 0 | O85: 500000 | P85: 0 | Q85: 0
B86: 002 | C86: 0111 | D86: 0700500 | E86: 870 | F86: 290 | J86: 500000 | K86: 500000 | L86: 0 | M86: 500000 | N86: 0 | O86: 500000 | P86: 500000 | Q86: 100
A87: Другие общегосударственные вопросы | B87: 002 | C87: 0113 | D87: 0000000 | E87: 000 | F87: 000 | J87: =J91+J103+J106+J114+J88 -> 516857 | K87: =K91+K103+K106+K114+K88 -> 893857 | L87: 0 | M87: 893857 | N87: 0 | O87: 893857 | P87: 340085.94 | Q87: 65.79884572
A88: Мероприятия по созданию многофункционального центра в городе Фокино | B88: 002 | C88: 0113 | D88: 5209900 | E88: 000 | F88: 000 | J88: =J89 -> 63000 | K88: =K89 -> 0 | L88: 0 | M88: 0 | N88: 0 | O88: 0 | P88: 63000 | Q88: 100
A89: Иные закупки товаров, работ и услуг для государственных(муниципальных) нужд | B89: 002 | C89: 0113 | D89: 5209900 | E89: 240 | F89: 000 | J89: =J90 -> 63000 | K89: 0 | L89: 0 | M89: 0 | N89: 0 | O89: 0 | P89: 63000 | Q89: 100
A90: Прочие работы, услуги | B90: 002 | C90: 0113 | D90: 5209900 | E90: 240 | F90: 226 | J90: 63000 | P90: 63000 | Q90: 100
A91: Организация деятельности административных комиссий | B91: 002 | C91: 0113 | D91: 5210204 | E91: 000 | F91: 000 | J91: =J92+J97 -> 287200 | K91: 287200 | L91: 0 | M91: 287200 | N91: 0 | O91: 287200 | P91: =P92+P97 -> 149919.74 | Q91: 52.20046657
A92: Расходы на выплаты персоналу государственных (муниципальных) органов | B92: 002 | C92: 0113 | D92: 5210204 | E92: 120 | F92: 000 | J92: =J93+J95 -> 264300 | K92: 230000 | L92: 0 | M92: 230000 | N92: 0 | O92: 230000 | P92: =P93+P95 -> 138005.13 | Q92: 52.21533485
A93: Заработная плата | B93: 002 | C93: 0113 | D93: 5210204 | E93: 120 | F93: 211 | J93: =176650+24700 -> 201350 | K93: 176650 | L93: 0 | M93: 176650 | N93: 0 | O93: 176650 | P93: 114105.48 | Q93: 56.67021604
B94: 002 | C94: 0113 | D94: 5210204 | E94: 120 | F94: 211 | J94: 176650 | K94: 176650 | L94: 0 | M94: 176650 | N94: 0 | O94: 176650 | Q94: 0
A95: Начисления на выплаты по оплате труда | B95: 002 | C95: 0113 | D95: 5210204 | E95: 120 | F95: 213 | J95: =53350+9600 -> 62950 | K95: 53350 | L95: 0 | M95: 53350 | N95: 0 | O95: 53350 | P95: 23899.65 | Q95: 37.96608419
B96: 002 | C96: 0113 | D96: 5210204 | E96: 120 | F96: 213 | J96: 53350 | K96: 53350 | L96: 0 | M96: 53350 | N96: 0 | O96: 53350 | P96: 53350 | Q96: 100
A97: Иные закупки товаров, работ и услуг для государственных(муниципальных) нужд | B97: 002 | C97: 0113 | D97: 5210204 | E97: 240 | F97: 000 | J97: =J98+J100+J101+J102 -> 22900 | K97: 57200 | L97: 0 | M97: 57200 | N97: 0 | O97: 57200 | P97: =P98+P100+P101+P102 -> 11914.61 | Q97: 52.02886463
A98: Услуги связи | B98: 002 | C98: 0113 | D98: 5210204 | E98: 240 | F98: 221 | J98: 15000 | K98: 15000 | L98: 0 | M98: 15000 | N98: 0 | O98: 15000 | P98: 9277.52 | Q98: 61.85013333
B99: 002 | C99: 0113 | D99: 5210204 | E99: 240 | F99: 221 | J99: 15000 | K99: 15000 | L99: 0 | M99: 15000 | N99: 0 | O99: 15000 | Q99: 0
A100: Прочие работы, услуги | B100: 002 | C100: 0113 | D100: 5210204 | E100: 240 | F100: 226 | J100: 0 | K100: 10000 | L100: 0 | M100: 10000 | N100: 0 | O100: 10000
A101: Увеличение стоимости основных средств | B101: 002 | C101: 0113 | D101: 5210204 | E101: 240 | F101: 310 | J101: 0 | K101: 15000 | L101: 0 | M101: 15000 | N101: 0 | O101: 15000
A102: Увеличение стоимости материальных запасов | B102: 002 | C102: 0113 | D102: 5210204 | E102: 240 | F102: 340 | J102: =17200-9300 -> 7900 | K102: 17200 | L102: 0 | M102: 17200 | N102: 0 | O102: 17200 | P102: 2637.09 | Q102: 33.38088608
A103: Долгосрочная целевая программа "Энергосбережение и повышение энергоэффективности в г. Фокино (2011-2020гг)" | B103: 002 | C103: 0113 | D103: 7951800 | E103: 000 | F103: 000 | J103: =J104 -> 0 | K103: 250000 | L103: 0 | M103: 250000 | N103: 0 | O103: 250000 | P103: =P104 -> 0
A104: Иные закупки товаров, работ и услуг для государственных(муниципальных) нужд | B104: 002 | C104: 0113 | D104: 7951800 | E104: 240 | F104: 000 | J104: =J105 -> 0 | K104: 250000 | L104: 0 | M104: 250000 | N104: 0 | O104: 250000 | P104: =P105 -> 0
A105: Работы, услуги по содержанию имущества | B105: 002 | C105: 0113 | D105: 7951800 | E105: 240 | F105: 225 | J105: 0 | K105: 250000 | L105: 0 | M105: 250000 | N105: 0 | O105: 250000 | P105: 0
A106: Долгосрочнаяя целевая программа "Развитие информационного обеспечения " | B106: 002 | C106: 0113 | D106: 7952200 | E106: 000 | F106: 000 | J106: =J107 -> 160000 | K106: 120000 | L106: 0 | M106: 120000 | N106: 0 | O106: 120000 | P106: =P107 -> 127166.2 | Q106: 79.478875
A107: Иные закупки товаров, работ и услуг для государственных(муниципальных) нужд | B107: 002 | C107: 0113 | D107: 7952200 | E107: 240 | F107: 000 | J107: =J108+J109+J110+J112 -> 160000 | K107: 120000 | L107: 0 | M107: 120000 | N107: 0 | O107: 120000 | P107: =P108+P109+P110+P112 -> 127166.2 | Q107: 79.478875
A108: Работы, услуги по содержанию имущества | B108: 002 | C108: 0113 | D108: 7952200 | E108: 240 | F108: 225 | J108: =58237-3000+40000 -> 95237 | K108: 90000 | L108: 0 | M108: 90000 | N108: 0 | O108: 90000 | P108: 62825.2 | Q108: 65.96721862
A109: Прочие работы, услуги | B109: 002 | C109: 0113 | D109: 7952200 | E109: 240 | F109: 226 | J109: =30100+3000 -> 33100 | K109: 15000 | L109: 0 | M109: 15000 | N109: 0 | O109: 15000 | P109: 32760 | Q109: 98.97280967
A110: Увеличение стоимости основных средств | B110: 002 | C110: 0113 | D110: 7952200 | E110: 240 | F110: 310 | J110: 1500 | K110: 1500 | L110: 0 | M110: 1500 | N110: 0 | O110: 1500 | P110: 1418 | Q110: 94.53333333
B111: 002 | C111: 0113 | D111: 7952200 | E111: 240 | F111: 310 | J111: 1500 | K111: 1500 | L111: 0 | M111: 1500 | N111: 0 | O111: 1500 | Q111: 0
A112: Увеличение стоимости материальных запасов | B112: 002 | C112: 0113 | D112: 7952200 | E112: 240 | F112: 340 | J112: =13500+16663 -> 30163 | K112: 13500 | L112: 0 | M112: 13500 | N112: 0 | O112: 13500 | P112: 30163 | Q112: 100
B113: 002 | C113: 0113 | D113: 7952200 | E113: 240 | F113: 340 | J113: 13500 | K113: 13500 | L113: 0 | M113: 13500 | N113: 0 | O113: 13500 | P113: 13500 | Q113: 100
A114: Возмещение морального вреда по решению суда | B114: 002 | C114: 0113 | D114: 9800000 | E114: 000 | F114: 000 | J114: =J115 -> 6657 | K114: 236657 | L114: 0 | M114: 236657 | N114: 0 | O114: 236657 | P114: =P115 -> 0 | Q114: 0
A115: Исполнение судебных актов и мировых соглашений | B115: 002 | C115: 0113 | D115: 9800000 | E115: 830 | F115: 000 | J115: =J116 -> 6657 | K115: 236657 | L115: 0 | M115: 236657 | N115: 0 | O115: 236657 | P115: =P116 -> 0 | Q115: 0
A116: Прочие расходы | B116: 002 | C116: 0113 | D116: 9800000 | E116: 830 | F116: 290 | J116: 6657 | K116: 236657 | L116: 0 | M116: 236657 | N116: 0 | O116: 236657 | P116: 0 | Q116: 0
B117: 002 | C117: 0113 | D117: 9800000 | E117: 830 | F117: 290 | J117: 236657 | K117: 236657 | L117: 0 | M117: 236657 | N117: 0 | O117: 236657 | P117: 236657 | Q117: 100
A118: НАЦИОНАЛЬНАЯ ОБОРОНА | B118: 002 | C118: 0200 | D118: 0000000 | E118: 000 | F118: 000 | J118: =J119 -> 381130 | K118: 382800 | L118: 0 | M118: 382800 | N118: 0 | O118: 382800 | P118: =P119 -> 270678.11 | Q118: 71.01989085
A119: Мобилизационная и вневойсковая подготовка | B119: 002 | C119: 0203 | D119: 0000000 | E119: 000 | F119: 000 | J119: =J120 -> 381130 | K119: 382800 | L119: 0 | M119: 382800 | N119: 0 | O119: 382800 | P119: =P120 -> 270678.11 | Q119: 71.01989085
A120: Субвенции бюджетам городских округов на осуществление отдельных государственных полномочий по первичному воинскому учету на территориях, где отсутствуют военные комиссариаты | B120: 002 | C120: 0203 | D120: 0013602 | E120: 000 | F120: 000 | J120: =J121 -> 381130 | K120: 382800 | L120: 0 | M120: 382800 | N120: 0 | O120: 382800 | P120: =P121 -> 270678.11 | Q120: 71.01989085
A121: Расходы на выплаты персоналу государственных (муниципальных) органов | B121: 002 | C121: 0203 | D121: 0013602 | E121: 120 | F121: 000 | J121: =J122+J123 -> 381130 | K121: 382800 | L121: 0 | M121: 382800 | N121: 0 | O121: 382800 | P121: =P122+P123 -> 270678.11 | Q121: 71.01989085
A122: Заработная плата | B122: 002 | C122: 0203 | D122: 0013602 | E122: 120 | F122: 211 | J122: 294000 | K122: 294000 | L122: 0 | M122: 294000 | N122: 0 | O122: 294000 | P122: 217134.01 | Q122: 73.85510544
A123: Начисления на выплаты по оплате труда | B123: 002 | C123: 0203 | D123: 0013602 | E123: 120 | F123: 213 | J123: =88800-1670 -> 87130 | K123: 88800 | L123: 0 | M123: 88800 | N123: 0 | O123: 88800 | P123: 53544.1 | Q123: 61.45311603
A124: НАЦИОНАЛЬНАЯ БЕЗОПАСНОСТЬ И ПРАВООХРАНИТЕЛЬНАЯ ДЕЯТЕЛЬНОСТЬ | B124: 002 | C124: 0300 | D124: 0000000 | E124: 000 | F124: 000 | J124: =J125 -> 92835 | K124: 92835 | L124: 0 | M124: 92835 | N124: 0 | O124: 92835 | P124: =P125 -> 92831.73 | Q124: 99.99647762
A125: Защита населения и территории от чрезвычайных ситуаций природного и техногенного характера, гражданская оборона | B125: 002 | C125: 0309 | D125: 0000000 | E125: 000 | F125: 000 | J125: =J126 -> 92835 | K125: 92835 | L125: 0 | M125: 92835 | N125: 0 | O125: 92835 | P125: =P126 -> 92831.73 | Q125: 99.99647762
A126: Органы национальной безопасности и правоохранительной деятельности | B126: 002 | C126: 0309 | D126: 2026701 | E126: 000 | F126: 000 | J126: =J127+J132 -> 92835 | K126: 92835 | L126: 0 | M126: 92835 | N126: 0 | O126: 92835 | P126: =P127+P132 -> 92831.73 | Q126: 99.99647762
A127: Расходы на выплаты персоналу государственных (муниципальных) органов | B127: 002 | C127: 0309 | D127: 2026701 | E127: 120 | F127: 000 | J127: =J128+J130 -> 44656 | K127: 44656 | L127: 0 | M127: 44656 | N127: 0 | O127: 44656 | P127: =P128+P130 -> 44654.2 | Q127: 99.99596919
A128: Заработная плата | B128: 002 | C128: 0309 | D128: 2026701 | E128: 120 | F128: 211 | J128: 32584 | K128: 32584 | L128: 0 | M128: 32584 | N128: 0 | O128: 32584 | P128: 32583.19 | Q128: 99.99751412
B129: 002 | C129: 0309 | D129: 2026701 | E129: 120 | F129: 211 | J129: 32584 | K129: 32584 | L129: 0 | M129: 32584 | N129: 0 | O129: 32584 | Q129: 0
A130: Начисления на выплаты по оплате труда | B130: 002 | C130: 0309 | D130: 2026701 | E130: 120 | F130: 213 | J130: 12072 | K130: 12072 | L130: 0 | M130: 12072 | N130: 0 | O130: 12072 | P130: 12071.01 | Q130: 99.9917992
B131: 002 | C131: 0309 | D131: 2026701 | E131: 120 | F131: 213 | J131: 12072 | K131: 12072 | L131: 0 | M131: 12072 | N131: 0 | O131: 12072 | P131: 12072 | Q131: 100
A132: Иные закупки товаров, работ и услуг для государственных(муниципальных) нужд | B132: 002 | C132: 0309 | D132: 2026701 | E132: 240 | F132: 000 | J132: =J133+J135+J137+J139 -> 48179 | K132: 48179 | L132: 0 | M132: 48179 | N132: 0 | O132: 48179 | P132: =P133+P135+P137+P139 -> 48177.53 | Q132: 99.99694888
A133: Услуги связи | B133: 002 | C133: 0309 | D133: 2026701 | E133: 240 | F133: 221 | J133: 1434 | K133: 1434 | L133: 0 | M133: 1434 | N133: 0 | O133: 1434 | P133: 1433.12 | Q133: =P133/J133*100 -> 99.93863319
B134: 002 | C134: 0309 | D134: 2026701 | E134: 240 | F134: 221 | J134: 1434 | K134: 1434 | L134: 0 | M134: 1434 | N134: 0 | O134: 1434 | Q134: 0
A135: Работы, услуги по содержанию имущества | B135: 002 | C135: 0309 | D135: 2026701 | E135: 240 | F135: 225 | J135: =14608.87+0.13 -> 14609 | K135: 14608.87 | L135: 0 | M135: 14608.87 | N135: 0 | O135: 14608.87 | P135: 14608.87 | Q135: 99.99911014
B136: 002 | C136: 0309 | D136: 2026701 | E136: 240 | F136: 225 | J136: 14608.87 | K136: 14608.87 | L136: 0 | M136: 14608.87 | N136: 0 | O136: 14608.87 | Q136: 0
A137: Прочие работы, услуги | B137: 002 | C137: 0309 | D137: 2026701 | E137: 240 | F137: 226 | J137: =0.13-0.13 -> 0 | K137: 0.13 | L137: 0 | M137: 0.13 | N137: 0 | O137: 0.13
B138: 002 | C138: 0309 | D138: 2026701 | E138: 240 | F138: 226 | J138: 0.13 | K138: 0.13 | L138: 0 | M138: 0.13 | N138: 0 | O138: 0.13 | Q138: 0
A139: Увеличение стоимости материальных запасов | B139: 002 | C139: 0309 | D139: 2026701 | E139: 240 | F139: 340 | J139: 32136 | K139: 32136 | L139: 0 | M139: 32136 | N139: 0 | O139: 32136 | P139: 32135.54 | Q139: 99.99856858
B140: 002 | C140: 0309 | D140: 2026701 | E140: 240 | F140: 340 | J140: 32136 | K140: 32136 | L140: 0 | M140: 32136 | N140: 0 | O140: 32136 | P140: 32136 | Q140: 100
A141: НАЦИОНАЛЬНАЯ ЭКОНОМИКА | B141: 002 | C141: 0400 | D141: 0000000 | E141: 000 | F141: 000 | J141: =J148+J158+J178+J142 -> 21520796.5 | K141: =K148+K158+K178+K142 -> 18416000 | L141: 0 | M141: 18416000 | N141: 0 | O141: 18416000 | P141: 16741526.18 | Q141: 77.79231675
A142: Общеэкономические вопросы | B142: 002 | C142: 0401 | D142: 0000000 | E142: 000 | F142: 000 | J142: =J143+J146 -> 90545.5 | K142: =K143+K146 -> 0 | L142: 0 | M142: 0 | N142: 0 | O142: 0 | P142: 90545.23 | Q142: 99.99970181
A143: Осуществление государственных полномочий в области содействия занятости населения, включая расходы по осуществлению этих полномочий | B143: 002 | C143: 0401 | D143: 5201000 | E143: 000 | F143: 000 | J143: =J144 -> 70214.5 | K143: =K144 -> 0 | L143: 0 | M143: 0 | N143: 0 | O143: 0 | P143: 70214.5 | Q143: 100
A144: Субсидии бюджетным учреждениям на иные цели | B144: 002 | C144: 0401 | D144: 5201000 | E144: 612 | F144: 000 | J144: =J145 -> 70214.5 | K144: =K145 -> 0 | L144: 0 | M144: 0 | N144: 0 | O144: 0 | P144: 70214.5 | Q144: 100
A145: Безвозмездные перечисления государственным и муниципальным организациям | B145: 002 | C145: 0401 | D145: 5201000 | E145: 612 | F145: 241 | J145: 70214.5 | P145: 70214.5 | Q145: 100
A146: ДЦП "Профилактика безнадзорности и правонарушений несовершеннолетних" | B146: 002 | C146: 0401 | D146: 7952700 | E146: 612 | F146: 000 | J146: =J147 -> 20331 | K146: =K147 -> 0 | L146: 0 | M146: 0 | N146: 0 | O146: 0 | P146: 20330.73 | Q146: 99.99867198
A147: Субсидии бюджетным учреждениям на иные цели | B147: 002 | C147: 0401 | D147: 7952700 | E147: 612 | F147: 241 | J147: 20331 | P147: 20330.73 | Q147: 99.99867198
A148: Безвозмездные перечисления государственным и муниципальным организациям | B148: 002 | C148: 0408 | D148: 0000000 | E148: 000 | F148: 000 | J148: =J150+J154 -> 804000 | K148: 847000 | L148: 0 | M148: 847000 | N148: 0 | O148: 847000 | P148: =P150+P154 -> 423600 | Q148: 52.68656716
B149: 002 | C149: 0408 | D149: 3170100 | E149: 810 | F149: 242 | J149: 0 | K149: 0 | L149: 0 | M149: 0 | N149: 0 | O149: 0 | P149: 0
A150: Субсидии транспортным организациям на компенсацию потерь в доходах, возникающих в результате регулирования тарифов на перевозки пассажиров за счет средств областного бюджета | B150: 002 | C150: 0408 | D150: 3170110 | E150: 000 | F150: 000 | J150: =J151 -> 592000 | K150: 592000 | L150: 0 | M150: 592000 | N150: 0 | O150: 592000 | P150: =P151 -> 296400 | Q150: 50.06756757
A151: Субсидии юридическим лицам (кроме государственных(муниципальных) учреждений), индивидуальным предпринимателям и физическим лицам - производителям товаров, работ, услуг | B151: 002 | C151: 0408 | D151: 3170110 | E151: 810 | F151: 000 | J151: =J152 -> 592000 | K151: 592000 | L151: 0 | M151: 592000 | N151: 0 | O151: 592000 | P151: =P152 -> 296400 | Q151: 50.06756757
A152: Безвозмездные перечисления организациям , за исключением государственных и муниципальных | B152: 002 | C152: 0408 | D152: 3170110 | E152: 810 | F152: 242 | J152: 592000 | K152: 592000 | L152: 0 | M152: 592000 | N152: 0 | O152: 592000 | P152: 296400 | Q152: 50.06756757
B153: 002 | C153: 0408 | D153: 3170110 | E153: 810 | F153: 242 | J153: 592000 | K153: 592000 | L153: 0 | M153: 592000 | N153: 0 | O153: 592000 | P153: 592000 | Q153: 100
A154: Субсидии транспортным организациям на компенсацию потерь в доходах, возникающих в результате регулирования тарифов на перевозки пассажиров за счет средств местного бюджета | B154: 002 | C154: 0408 | D154: 3170120 | E154: 000 | F154: 000 | J154: =J155 -> 212000 | K154: 255000 | L154: 0 | M154: 255000 | N154: 0 | O154: 255000 | P154: =P155 -> 127200 | Q154: 60
A155: Субсидии юридическим лицам (кроме государственных(муниципальных) учреждений), индивидуальным предпринимателям и физическим лицам - производителям товаров, работ, услуг | B155: 002 | C155: 0408 | D155: 3170120 | E155: 810 | F155: 000 | J155: =J156 -> 212000 | K155: 255000 | L155: 0 | M155: 255000 | N155: 0 | O155: 255000 | P155: =P156 -> 127200 | Q155: 60
A156: Безвозмездные перечисления организациям , за исключением государственных и муниципальных | B156: 002 | C156: 0408 | D156: 3170120 | E156: 810 | F156: 242 | J156: =255000-43000 -> 212000 | K156: 255000 | L156: 0 | M156: 255000 | N156: 0 | O156: 255000 | P156: 127200 | Q156: 60
B157: 002 | C157: 0408 | D157: 3170120 | E157: 810 | F157: 242 | J157: 255000 | K157: 255000 | L157: 0 | M157: 255000 | N157: 0 | O157: 255000 | P157: 255000 | Q157: 100
A158: Дорожное хозяйство (дорожные фонды) | B158: 002 | C158: 0409 | D158: 0000000 | E158: 000 | F158: 000 | J158: =J162+J166+J173+J170+J159 -> 20179751 | K158: =K162+K166+K173+K170+K159 -> 17322500 | L158: 0 | M158: 17322500 | N158: 0 | O158: 17322500 | P158: 15840999.69 | Q158: 78.49948044
A159: Капитальный ремонт и ремонт дворовых территорий многоквартирных домов, проездов к дворовым территориям многоквартирных домов населенных пунктов | B159: 002 | C159: 0409 | D159: 3150102 | E159: 000 | F159: 000 | J159: =J160 -> 4063900 | K159: =K160 -> 0 | L159: 0 | M159: 0 | N159: 0 | O159: 0 | P159: 0 | Q159: 0
A160: Иные закупки товаров, работ и услуг для государственных(муниципальных) нужд | B160: 002 | C160: 0409 | D160: 3150102 | E160: 240 | F160: 000 | J160: =J161 -> 4063900 | K160: 0 | L160: 0 | M160: 0 | N160: 0 | O160: 0 | P160: 0 | Q160: 0
A161: Работы, услуги по содержанию имущества | B161: 002 | C161: 0409 | D161: 3150102 | E161: 240 | F161: 225 | J161: 4063900 | P161: 0 | Q161: 0
A162: Содержание автомобильных дорог общего пользования местного значения за счет средств областного бюджета | B162: 002 | C162: 0409 | D162: 3150110 | E162: 000 | F162: 000 | J162: =J163 -> 10327800 | K162: 10327800 | L162: 0 | M162: 10327800 | N162: 0 | O162: 10327800 | P162: =P163 -> 10327800 | Q162: 100
A163: Иные закупки товаров, работ и услуг для государственных(муниципальных) нужд | B163: 002 | C163: 0409 | D163: 3150110 | E163: 240 | F163: 000 | J163: =J164 -> 10327800 | K163: 10327800 | L163: 0 | M163: 10327800 | N163: 0 | O163: 10327800 | P163: =P164 -> 10327800 | Q163: 100
A164: Работы, услуги по содержанию имущества | B164: 002 | C164: 0409 | D164: 3150110 | E164: 240 | F164: 225 | J164: 10327800 | K164: 10327800 | L164: 0 | M164: 10327800 | N164: 0 | O164: 10327800 | P164: 10327800 | Q164: 100
B165: 002 | C165: 0409 | D165: 3150110 | E165: 240 | F165: 225 | J165: 10327800 | K165: 10327800 | L165: 0 | M165: 10327800 | N165: 0 | O165: 10327800 | P165: 10327800 | Q165: 100
A166: Ремонт автомобильных дорог общего пользования местного значения за счет средств областного бюджета | B166: 002 | C166: 0409 | D166: 3150120 | E166: 000 | F166: 000 | J166: =J167 -> 2164700 | K166: 2164700 | L166: 0 | M166: 2164700 | N166: 0 | O166: 2164700 | P166: =P167 -> 2164700 | Q166: 100
A167: Иные закупки товаров, работ и услуг для государственных(муниципальных) нужд | B167: 002 | C167: 0409 | D167: 3150120 | E167: 240 | F167: 000 | J167: =J168 -> 2164700 | K167: 2164700 | L167: 0 | M167: 2164700 | N167: 0 | O167: 2164700 | P167: =P168 -> 2164700 | Q167: 100
A168: Работы, услуги по содержанию имущества | B168: 002 | C168: 0409 | D168: 3150120 | E168: 240 | F168: 225 | J168: 2164700 | K168: 2164700 | L168: 0 | M168: 2164700 | N168: 0 | O168: 2164700 | P168: 2164700 | Q168: 100
B169: 002 | C169: 0409 | D169: 3150120 | E169: 240 | F169: 225 | J169: 2164700 | K169: 2164700 | L169: 0 | M169: 2164700 | N169: 0 | O169: 2164700 | P169: 2164700 | Q169: 100
A170: Мероприятия по реализации Федерального закона от 9 февраля 2007 года N 16-ФЗ "О транспортно йбезопасности" в сфере дорожного хозяйства | B170: 002 | C170: 0409 | D170: 3150302 | E170: 000 | F170: 000 | J170: =J171 -> 68052 | K170: =K171 -> 0 | L170: 0 | M170: 0 | N170: 0 | O170: 0 | P170: 68052 | Q170: 100
A171: Иные закупки товаров, работ и услуг для государственных (муниципальных) нужд | B171: 002 | C171: 0409 | D171: 3150302 | E171: 240 | F171: 000 | J171: =J172 -> 68052 | K171: 0 | L171: 0 | M171: 0 | N171: 0 | O171: 0 | P171: 68052 | Q171: 100
A172: Прочие работы, услуги | B172: 002 | C172: 0409 | D172: 3150302 | E172: 240 | F172: 226 | J172: 68052 | P172: 68052 | Q172: 100
A173: Содерж автомобильных дорог и инженерных сооружений на них в границах городских округов в рамках благоустройства | B173: 002 | C173: 0409 | D173: 6000200 | E173: 000 | F173: 000 | J173: =J174 -> 3555299 | K173: 4830000 | L173: 0 | M173: 4830000 | N173: 0 | O173: 4830000 | P173: =P174 -> 3280447.69 | Q173: 92.26924908
A174: Иные закупки товаров, работ и услуг для государственных(муниципальных) нужд | B174: 002 | C174: 0409 | D174: 6000200 | E174: 240 | F174: 000 | J174: =J175+J177+J176 -> 3555299 | K174: =K175+K177+K176 -> 9660000 | L174: 0 | M174: 9660000 | N174: 0 | O174: 9660000 | P174: 3280447.69 | Q174: 92.26924908
A175: Работы, услуги по содержанию имущества | B175: 002 | C175: 0409 | D175: 6000200 | E175: 240 | F175: 225 | J175: =4830000-304754-182633-99781-123233-18065-566400 -> 3535134 | K175: 4830000 | L175: 0 | M175: 4830000 | N175: 0 | O175: 4830000 | P175: 3260282.69 | Q175: 92.22515158
A176: Увеличение стоимости основных средств | B176: 002 | C176: 0409 | D176: 6000200 | E176: 240 | F176: 310 | J176: 18065 | K176: 4830000 | L176: 0 | M176: 4830000 | N176: 0 | O176: 4830000 | P176: 18065 | Q176: 100
A177: Увеличение стоимости материальных запасов | B177: 002 | C177: 0409 | D177: 6000200 | E177: 240 | F177: 340 | J177: 2100 | P177: 2100 | Q177: 100
A178: Другие вопросы в области национальной экономики | B178: 002 | C178: 0412 | D178: 0000000 | E178: 000 | F178: 000 | J178: =J179+J185+J189 -> 446500 | K178: 246500 | L178: 0 | M178: 246500 | N178: 0 | O178: 246500 | P178: =P179+P185+P189 -> 386381.26 | Q178: 86.53555655
A179: Осуществление отдельных государственных полномочий Брянской области в области охраны труда | B179: 002 | C179: 0412 | D179: 5210222 | E179: 000 | F179: 000 | J179: =J180 -> 143500 | K179: 143500 | L179: 0 | M179: 143500 | N179: 0 | O179: 143500 | P179: =P180 -> 86381.26 | Q179: 60.196
A180: Расходы на выплаты персоналу государственных (муниципальных) органов | B180: 002 | C180: 0412 | D180: 5210222 | E180: 120 | F180: 000 | J180: =J181+J183 -> 143500 | K180: 143500 | L180: 0 | M180: 143500 | N180: 0 | O180: 143500 | P180: =P181+P183 -> 86381.26 | Q180: 60.196
A181: Заработная плата | B181: 002 | C181: 0412 | D181: 5210222 | E181: 120 | F181: 211 | J181: 110215 | K181: 110215 | L181: 0 | M181: 110215 | N181: 0 | O181: 110215 | P181: 66468.98 | Q181: 60.30846981
B182: 002 | C182: 0412 | D182: 5210222 | E182: 120 | F182: 211 | J182: 110215 | K182: 110215 | L182: 0 | M182: 110215 | N182: 0 | O182: 110215 | Q182: 0
A183: Начисления на выплаты по оплате труда | B183: 002 | C183: 0412 | D183: 5210222 | E183: 120 | F183: 213 | J183: 33285 | K183: 33285 | L183: 0 | M183: 33285 | N183: 0 | O183: 33285 | P183: 19912.28 | Q183: 59.8235842
B184: 002 | C184: 0412 | D184: 5210222 | E184: 120 | F184: 213 | J184: 33285 | K184: 33285 | L184: 0 | M184: 33285 | N184: 0 | O184: 33285 | P184: 33285 | Q184: 100
A185: ДЦП "Поддержка малого и среднего предпринимательства в городе Фокино на 2012-2014гг" | B185: 002 | C185: 0412 | D185: 7951900 | E185: 000 | F185: 000 | J185: =J186 -> 3000 | K185: 3000 | L185: 0 | M185: 3000 | N185: 0 | O185: 3000 | P185: =P186 -> 0 | Q185: 0
A186: Иные закупки товаров, работ и услуг для государственных(муниципальных) нужд | B186: 002 | C186: 0412 | D186: 7951900 | E186: 240 | F186: 000 | J186: =J187 -> 3000 | K186: 3000 | L186: 0 | M186: 3000 | N186: 0 | O186: 3000 | P186: =P187 -> 0 | Q186: 0
A187: Увеличение стоимости материальных запасов | B187: 002 | C187: 0412 | D187: 7951900 | E187: 240 | F187: 340 | J187: 3000 | K187: 3000 | L187: 0 | M187: 3000 | N187: 0 | O187: 3000 | P187: 0 | Q187: 0
B188: 002 | C188: 0412 | D188: 7951900 | E188: 240 | F188: 340 | J188: 3000 | K188: 3000 | L188: 0 | M188: 3000 | N188: 0 | O188: 3000 | P188: 3000 | Q188: 100
A189: Долгосрочная целевая программа "Реформирование земельных, имущественных отношений и градостроительства ( 2012-2014 гг)" | B189: 002 | C189: 0412 | D189: 7952300 | E189: 000 | F189: 000 | J189: =J190 -> 300000 | K189: 100000 | L189: 0 | M189: 100000 | N189: 0 | O189: 100000 | P189: =P190 -> 300000 | Q189: 100
A190: Иные закупки товаров, работ и услуг для государственных(муниципальных) нужд | B190: 002 | C190: 0412 | D190: 7952300 | E190: 240 | F190: 000 | J190: =J191 -> 300000 | K190: 100000 | L190: 0 | M190: 100000 | N190: 0 | O190: 100000 | P190: =P191 -> 300000 | Q190: 100
A191: Прочие работы, услуги | B191: 002 | C191: 0412 | D191: 7952300 | E191: 240 | F191: 226 | J191: 300000 | K191: 100000 | L191: 0 | M191: 100000 | N191: 0 | O191: 100000 | P191: 300000 | Q191: 100
B192: 002 | C192: 0412 | D192: 7952300 | E192: 240 | F192: 226 | J192: 100000 | K192: 100000 | L192: 0 | M192: 100000 | N192: 0 | O192: 100000 | P192: 100000 | Q192: 100
A193: ЖИЛИЩНО-КОММУНАЛЬНОЕ ХОЗЯЙСТВО | B193: 002 | C193: 0500 | D193: 0000000 | E193: 000 | F193: 000 | J193: =J194+J214 -> 5319076.95 | K193: 3489800 | L193: 0 | M193: 3489800 | N193: 0 | O193: 3489800 | P193: =P194+P214 -> 3859934.83 | Q193: 72.56775689
A194: Коммунальное хозяйство | B194: 002 | C194: 0502 | D194: 0000000 | E194: 000 | F194: 000 | J194: =J195+J202+J210+J207 -> 2799495.95 | K194: =K195+K202+K210+K207 -> 1070000 | L194: 0 | M194: 1070000 | N194: 0 | O194: 1070000 | P194: 2028517.8 | Q194: 72.4601084
A195: Мероприятия в области коммунального хозяйства | B195: 002 | C195: 0502 | D195: 3510500 | E195: 000 | F195: 000 | J195: =J199+J196 -> 2051193.95 | K195: =K199+K196 -> 800000 | L195: 0 | M195: 800000 | N195: 0 | O195: 800000 | P195: 1771616 | Q195: 86.36998954
A196: Иные закупки товаров, работ и услуг для государственных(муниципальных) нужд | B196: 002 | C196: 0502 | D196: 3510500 | E196: 240 | F196: 000 | J196: =J197+J198 -> 652287 | K196: =K197+K198 -> 0 | L196: 0 | M196: 0 | N196: 0 | O196: 0 | P196: 578533 | Q196: 88.69301396
A197: Работы, услуги по содержанию имущества | B197: 002 | C197: 0502 | D197: 3510500 | E197: 240 | F197: 225 | J197: =651287-21500-1400 -> 628387 | P197: 554633 | Q197: =P197/J197*100 -> 88.26296534
A198: Прочие работы, услуги | B198: 002 | C198: 0502 | D198: 3510500 | E198: 240 | F198: 226 | J198: =1000+21500+1400 -> 23900 | P198: 23900 | Q198: 100
A199: Субсидии юридическим лицам (кроме государственных(муниципальных) учреждений), индивидуальным предпринимателям и физическим лицам - производителям товаров, работ, услуг | B199: 002 | C199: 0502 | D199: 3510500 | E199: 810 | F199: 000 | J199: =J200 -> 1398906.95 | K199: 800000 | L199: 0 | M199: 800000 | N199: 0 | O199: 800000 | P199: =P200 -> 1193083 | Q199: 85.28680196
A200: Безвозмездные перечисления государственным и муниципальным организациям | B200: 002 | C200: 0502 | D200: 3510500 | E200: 810 | F200: 241 | J200: =800000+248906.95+200000+150000 -> 1398906.95 | K200: 800000 | L200: 0 | M200: 800000 | N200: 0 | O200: 800000 | P200: 1193083 | Q200: 85.28680196
... 380 more rows
